bitfinex/quotes_BTCUSD_20251217
["timestamp","ask_amount","ask_price","bid_price","bid_amount"]
[1765930274436,0.01138679,87821.0,87818.0,0.01138718]
[1765930274845,0.01138692,87820.0,87817.0,0.01138731]
[1765930276318,0.23912708,87820.0,87817.0,0.01138731]
[1765930276536,0.001,87820.0,87817.0,0.01138731]
[1765930277193,0.001,87820.0,87817.0,0.23913155]
[1765930277410,0.001,87820.0,87818.0,0.22774183]
[1765930278619,0.01138666,87822.0,87819.0,0.01138705]
[1765930278919,0.001,87820.0,87819.0,0.01138705]
[1765930279420,0.01138666,87822.0,87819.0,0.01138705]
[1765930279844,0.01138679,87821.0,87817.0,0.23913155]
[1765930280412,0.01138718,87818.0,87814.0,0.0113877]
[1765930282001,0.01138705,87819.0,87815.0,0.23913909]
[1765930282220,0.01138705,87819.0,87814.0,0.0113877]
[1765930282221,0.23913317,87818.0,87814.0,0.0113877]
[1765930282535,0.01138718,87818.0,87815.0,0.01138757]
[1765930282692,0.01238718,87818.0,87815.0,0.01138757]
[1765930282895,0.001,87818.0,87815.0,0.2391373]
[1765930283215,0.001,87818.0,87816.0,0.22774728]
[1765930283412,0.23912786,87820.0,87816.0,0.23913472]
[1765930283650,0.01138705,87819.0,87816.0,0.01138744]
[1765930283805,0.01138679,87821.0,87817.0,0.01138731]
[1765930284010,0.23911984,87823.0,87818.0,0.01138718]
[1765930284723,0.01138666,87822.0,87819.0,0.01138705]
[1765930286305,0.01238666,87822.0,87819.0,0.01138705]
[1765930286771,0.01138679,87821.0,87816.0,0.02348744]
[1765930286974,0.01138679,87821.0,87816.0,0.01138744]
[1765930287176,0.01138692,87820.0,87817.0,0.01138731]
[1765930287734,0.23912591,87820.0,87816.0,0.01138744]
[1765930288431,0.22774331,87819.0,87815.0,0.01138757]
[1765930288595,0.01138692,87820.0,87816.0,0.01138744]
[1765930289388,0.24012715,87820.0,87817.0,0.01138731]
[1765930290278,0.01238692,87820.0,87817.0,0.01138731]
[1765930290838,0.001,87820.0,87817.0,0.23913152]
[1765930291252,0.01138679,87821.0,87817.0,0.23913152]
[1765930291461,0.001,87820.0,87817.0,0.23913152]
[1765930291662,0.001,87820.0,87817.0,0.01138731]
[1765930291885,0.23912819,87819.0,87815.0,0.03538757]
[1765930292059,0.01138705,87819.0,87816.0,0.01138744]
[1765930292398,0.01138718,87818.0,87815.0,0.01138757]
[1765930292603,0.01138705,87819.0,87816.0,0.01138744]
[1765930293404,0.01238705,87819.0,87816.0,0.01138744]
[1765930294917,0.01138718,87818.0,87815.0,0.01138757]
[1765930295126,0.22774925,87816.0,87814.0,0.0121]
[1765930295330,0.01138731,87817.0,87814.0,0.0121]
[1765930295736,0.23913571,87817.0,87814.0,0.0121]
[1765930295895,0.01138731,87817.0,87814.0,0.0121]
[1765930296100,0.22776449,87810.0,87806.0,0.03421753]
[1765930296465,0.22776449,87810.0,87806.0,0.01138874]
[1765930296622,0.01121,87811.0,87807.0,0.01138861]
[1765930297058,0.01121,87811.0,87808.0,0.01138848]
[1765930297289,0.01138744,87816.0,87811.0,0.01138809]
[1765930297466,0.01138757,87815.0,87813.0,0.02343]
[1765930298276,0.01138744,87816.0,87813.0,0.03481783]
[1765930298478,0.23913844,87816.0,87813.0,0.02343]
[1765930298868,0.23913844,87816.0,87813.0,0.03481783]
[1765930299451,0.23914112,87815.0,87813.0,0.001]
[1765930299645,0.23914112,87815.0,87811.0,0.01138809]
[1765930300248,0.01138757,87815.0,87812.0,0.01138796]
[1765930301664,0.01238757,87815.0,87812.0,0.01138796]
[1765930303800,0.0113877,87814.0,87809.0,0.01138835]
[1765930304185,0.01138796,87812.0,87808.0,0.23915608]
[1765930304381,0.23914976,87812.0,87808.0,0.01138848]
[1765930304969,0.01138809,87811.0,87808.0,0.01138848]
[1765930305176,0.23914976,87812.0,87809.0,0.01138835]
[1765930305875,0.01138796,87812.0,87809.0,0.01138835]
[1765930306117,0.23914786,87812.0,87809.0,0.01138835]
[1765930306316,0.01138796,87812.0,87809.0,0.01138835]
[1765930307021,0.01138809,87811.0,87808.0,0.01138848]
[1765930308069,0.01138796,87812.0,87809.0,0.23915543]
[1765930308254,0.001,87811.0,87809.0,0.23915543]
[1765930308469,0.001,87811.0,87809.0,0.01138835]
[1765930309118,0.001,87811.0,87809.0,0.23915336]
[1765930309506,0.001,87811.0,87809.0,0.01138835]
[1765930309732,0.01138822,87810.0,87806.0,0.02328874]
[1765930309902,0.01138822,87810.0,87806.0,0.25106196]
[1765930310078,0.01138835,87809.0,87806.0,0.02328874]
[1765930310643,0.01138822,87810.0,87807.0,0.01138861]
[1765930311031,0.01238822,87810.0,87807.0,0.01138861]
[1765930311389,0.01138822,87810.0,87807.0,0.01138861]
[1765930311590,0.01138796,87812.0,87808.0,0.01138848]
[1765930311792,0.001,87810.0,87808.0,0.01138848]
[1765930312791,0.01138796,87812.0,87809.0,0.22776708]
[1765930313107,0.01138783,87813.0,87809.0,0.23915543]
[1765930313338,0.001,87812.0,87809.0,0.23915543]
[1765930313710,0.01138783,87813.0,87810.0,0.01138822]
[1765930314037,0.001,87812.0,87810.0,0.01138822]
[1765930314436,0.01138783,87813.0,87810.0,0.01138822]
[1765930314845,0.001,87813.0,87811.0,0.01138809]
[1765930315070,0.001,87813.0,87811.0,0.23914799]
[1765930316352,0.01138692,87820.0,87815.0,0.01138757]
[1765930316555,0.01138718,87818.0,87815.0,0.01138757]
[1765930317614,0.01338718,87818.0,87815.0,0.01138757]
[1765930318305,0.23913364,87817.0,87814.0,0.0113877]
[1765930319703,0.01338731,87817.0,87814.0,0.0113877]
[1765930321257,0.002,87817.0,87814.0,0.23913978]
[1765930321452,0.002,87817.0,87815.0,0.22774972]
[1765930321677,0.002,87817.0,87814.0,0.0113877]
[1765930322102,0.23914181,87814.0,87811.0,0.01138809]
[1765930322311,0.0113877,87814.0,87811.0,0.01138809]
[1765930322678,0.23913636,87816.0,87812.0,0.03481796]
[1765930322876,0.01338731,87817.0,87814.0,0.0113877]
[1765930323103,0.002,87817.0,87814.0,0.23913977]
[1765930323304,0.002,87817.0,87814.0,0.0113877]
[1765930323504,0.01138718,87818.0,87814.0,0.0113877]
[1765930323815,0.002,87817.0,87814.0,0.0113877]
[1765930324112,0.01338731,87817.0,87814.0,0.0113877]
[1765930324278,0.01138731,87817.0,87814.0,0.0113877]
[1765930325545,0.01338731,87817.0,87813.0,0.01138783]
[1765930326438,0.23913909,87815.0,87811.0,0.01138809]
[1765930327054,0.23914389,87814.0,87809.0,0.25105324]
[1765930327263,0.23914389,87814.0,87809.0,0.27594324]
[1765930327461,0.0113877,87814.0,87811.0,0.01138809]
[1765930328576,0.0123877,87814.0,87811.0,0.01138809]
[1765930329221,0.001,87814.0,87811.0,0.23914815]
[1765930329378,0.01138783,87813.0,87810.0,0.01138822]
[1765930330438,0.01238783,87813.0,87810.0,0.01138822]
[1765930332428,0.001,87813.0,87810.0,0.23915113]
[1765930333106,0.001,87813.0,87811.0,0.22775957]
[1765930333877,0.02259757,87815.0,87811.0,0.22775957]
[1765930334482,0.001,87813.0,87811.0,0.22775957]
[1765930335347,0.001,87813.0,87810.0,0.01138822]
[1765930336195,0.0113877,87814.0,87810.0,0.01138822]
[1765930336616,0.01138783,87813.0,87810.0,0.01138822]
[1765930336824,0.01138874,87806.0,87802.0,0.02938926]
[1765930337007,0.23916514,87806.0,87803.0,0.03679]
[1765930337202,0.01138874,87806.0,87803.0,0.03679]
[1765930337385,0.23916376,87806.0,87803.0,0.03679]
[1765930337584,0.01138874,87806.0,87803.0,0.04817913]
[1765930337783,0.01138874,87806.0,87804.0,0.02489]
[1765930338199,0.23915838,87808.0,87804.0,0.036279]
[1765930338561,0.01138874,87806.0,87803.0,0.02428913]
[1765930338713,0.01138874,87806.0,87803.0,0.01138913]
[1765930338911,0.01138887,87805.0,87802.0,0.018]
[1765930339374,0.23916745,87805.0,87802.0,0.018]
[1765930340203,0.23916745,87805.0,87804.0,0.001]
[1765930340356,0.23916745,87805.0,87802.0,0.02938926]
[1765930340744,0.23916745,87805.0,87802.0,0.03038926]
[1765930340974,0.23916745,87805.0,87802.0,0.02938926]
[1765930341176,0.01121,87807.0,87803.0,0.01138913]
[1765930341411,0.01138809,87811.0,87806.0,0.01138874]
[1765930341614,0.01138822,87810.0,87806.0,0.23916168]
[1765930342178,0.01138835,87809.0,87806.0,0.01138874]
[1765930342535,0.01138835,87809.0,87805.0,0.03664]
[1765930342536,0.01138848,87808.0,87805.0,0.03664]
[1765930342844,0.23913722,87816.0,87807.0,0.01138861]
[1765930343053,0.23913722,87816.0,87811.0,0.01138809]
[1765930343261,0.01138744,87816.0,87812.0,0.01138796]
[1765930343472,0.1723204,87820.0,87812.0,0.239146]
[1765930343649,0.02242,87820.0,87813.0,0.2277543]
[1765930344440,0.01221,87815.0,87813.0,0.2277543]
[1765930345743,0.016,87824.0,87823.0,0.22773077]
[1765930345963,0.00380305,87827.0,87826.0,0.26828299]
[1765930346396,0.00380305,87827.0,87826.0,0.24339299]
[1765930348844,0.00480305,87827.0,87826.0,0.24339299]
[1765930349536,0.00480305,87827.0,87826.0,0.22772299]
[1765930353213,0.00319018,87827.0,87826.0,0.28003299]
[1765930353419,0.00319018,87827.0,87826.0,0.39391643]
[1765930354673,0.00219018,87827.0,87826.0,0.39391643]
[1765930355096,0.00319018,87827.0,87826.0,0.39391643]
[1765930355497,0.00219018,87827.0,87826.0,0.39391643]
[1765930356244,0.00219018,87827.0,87826.0,0.39491643]
[1765930360078,0.00219018,87827.0,87826.0,0.28103299]
[1765930366196,0.00219018,87827.0,87826.0,0.39491643]
[1765930371213,0.00219018,87827.0,87826.0,0.28103299]
[1765930371865,0.00219018,87827.0,87826.0,0.39491643]
[1765930373259,0.00219018,87827.0,87826.0,0.28103299]
[1765930373470,0.00219018,87827.0,87826.0,0.22872299]
[1765930374543,0.00219018,87827.0,87826.0,0.26696299]
[1765930374745,0.00319018,87827.0,87826.0,0.26696299]
[1765930374920,0.00319018,87827.0,87826.0,0.26596299]
[1765930375325,0.00319018,87827.0,87826.0,0.26696299]
[1765930375537,0.001,87827.0,87826.0,0.26696299]
[1765930377331,0.001,87827.0,87826.0,0.001]
[1765930377332,0.26786327,87827.0,87826.0,0.001]
[1765930377532,0.04351952,87800.0,87792.0,0.22781119]
[1765930377881,0.01511,87797.0,87796.0,0.22780081]
[1765930378042,0.01071,87800.0,87797.0,0.01138991]
[1765930378367,0.01071,87800.0,87798.0,0.22779562]
[1765930379413,0.01071,87800.0,87798.0,0.002]
[1765930380451,0.01071,87800.0,87798.0,0.003]
[1765930380628,0.01071,87800.0,87799.0,0.22779302]
[1765930381656,0.01071,87800.0,87798.0,0.001]
[1765930382062,0.01071,87800.0,87799.0,0.001]
[1765930383553,0.01071,87800.0,87799.0,0.002]
[1765930384339,0.0268,87800.0,87799.0,0.002]
[1765930384544,0.06530224,87800.0,87799.0,0.002]
[1765930384768,0.16619588,87800.0,87799.0,0.002]
[1765930385796,0.16619588,87800.0,87799.0,0.001]
[1765930386194,0.16619588,87800.0,87799.0,0.002]
[1765930386539,0.16619588,87800.0,87799.0,0.001]
[1765930387153,0.05230321,87800.0,87799.0,0.001]
[1765930387284,0.01609,87798.0,87797.0,0.01138991]
[1765930389448,0.01609,87798.0,87797.0,0.23918812]
[1765930389870,0.01609,87798.0,87796.0,0.01139004]
[1765930391606,0.02209952,87800.0,87797.0,0.23918812]
[1765930391607,0.01071,87800.0,87797.0,0.23918812]
[1765930392977,0.01171,87800.0,87799.0,0.22779302]
[1765930393582,0.01171,87800.0,87797.0,0.23918812]
[1765930393798,0.01609,87795.0,87794.0,0.23919394]
[1765930394005,0.01138965,87799.0,87795.0,0.01139017]
[1765930394166,0.03280965,87799.0,87795.0,0.01139017]
[1765930394586,0.03280965,87799.0,87796.0,0.22780081]
[1765930394920,0.03280965,87799.0,87796.0,0.23919085]
[1765930394921,0.02142,87799.0,87796.0,0.23919085]
[1765930395351,0.02142,87799.0,87797.0,0.22779661]
[1765930395917,0.01071,87800.0,87797.0,0.22779661]
[1765930395918,0.01609,87798.0,87797.0,0.22779661]
[1765930396334,0.01609,87798.0,87796.0,0.23919085]
[1765930400108,0.01138991,87797.0,87794.0,0.23919535]
[1765930400318,0.0268,87794.0,87793.0,0.01139042]
[1765930400537,0.0268,87794.0,87793.0,0.22780859]
[1765930400942,0.0268,87794.0,87789.0,0.23920823]
[1765930400943,0.0268,87794.0,87792.0,0.22780922]
[1765930401119,0.01071,87794.0,87792.0,0.22780922]
[1765930401948,0.04822,87794.0,87793.0,0.001]
[1765930402124,0.0113912,87787.0,87784.0,0.1494]
[1765930402826,0.01139042,87793.0,87788.0,0.22782157]
[1765930403028,0.01139094,87789.0,87785.0,0.01139146]
[1765930403471,0.01139107,87788.0,87785.0,0.01139146]
[1765930404275,0.01139107,87788.0,87785.0,0.01239146]
[1765930404514,0.01139094,87789.0,87785.0,0.23921921]
[1765930404701,0.01139094,87789.0,87785.0,0.24021921]
[1765930405521,0.01139068,87791.0,87787.0,0.0113912]
[1765930405724,0.01139081,87790.0,87787.0,0.0113912]
[1765930406451,0.01139094,87789.0,87785.0,0.01239146]
[1765930406658,0.23920991,87789.0,87785.0,0.23922072]
[1765930406830,0.23920991,87789.0,87785.0,0.01239146]
[1765930407032,0.03751,87786.0,87785.0,0.001]
[1765930407213,0.01071,87785.0,87782.0,0.02939185]
[1765930407420,0.01071,87785.0,87783.0,0.22783454]
[1765930407800,0.01071,87785.0,87782.0,0.02939185]
[1765930408020,0.01071,87785.0,87782.0,0.25722727]
[1765930409384,0.01071,87785.0,87782.0,0.23922727]
[1765930409658,0.01071,87785.0,87783.0,0.001]
[1765930410047,0.01071,87785.0,87782.0,0.01239185]
[1765930410240,0.01071,87785.0,87782.0,0.01339185]
[1765930410564,0.01071,87785.0,87782.0,0.23922732]
[1765930410923,0.01071,87785.0,87783.0,0.001]
[1765930411158,0.01071,87785.0,87782.0,0.23922732]
[1765930411561,0.01071,87785.0,87782.0,0.24022732]
[1765930411778,0.01071,87785.0,87783.0,0.001]
[1765930411925,0.22783195,87784.0,87783.0,0.001]
[1765930412333,0.01609,87783.0,87782.0,0.001]
[1765930412531,0.01609,87783.0,87782.0,0.002]
[1765930412752,0.01609,87783.0,87782.0,0.001]
[1765930413188,0.01139198,87781.0,87778.0,0.01139237]
[1765930414174,0.01139237,87778.0,87773.0,0.018]
[1765930414411,0.01139315,87772.0,87769.0,0.01139354]
[1765930415316,0.0113938,87767.0,87764.0,0.0002491]
[1765930415541,0.03669,87765.0,87764.0,0.0002491]
[1765930415743,0.04077321,87765.0,87764.0,0.0002491]
[1765930415940,0.15058267,87765.0,87764.0,0.0002491]
[1765930416142,0.04077321,87765.0,87764.0,0.0002491]
[1765930416520,0.04077321,87765.0,87764.0,0.0012491]
[1765930416949,0.09770325,87765.0,87764.0,0.0012491]
[1765930417119,0.04077321,87765.0,87764.0,0.0022491]
[1765930418050,0.09770325,87765.0,87764.0,0.0012491]
[1765930418252,0.04077321,87765.0,87764.0,0.0022491]
[1765930418858,0.05076093,87765.0,87764.0,0.0012491]
[1765930419228,0.13627058,87765.0,87764.0,0.0002491]
[1765930419920,0.42697058,87765.0,87764.0,0.0002491]
[1765930420092,0.4580954,87765.0,87764.0,0.0002491]
[1765930421122,0.4590954,87765.0,87764.0,0.0002491]
[1765930421828,0.4600954,87765.0,87764.0,0.0002491]
[1765930422443,0.44944298,87765.0,87764.0,0.0002491]
[1765930422918,0.3745729,87765.0,87764.0,0.0002491]
[1765930423612,0.38596917,87765.0,87764.0,0.0002491]
[1765930425639,0.41671844,87765.0,87764.0,0.0002491]
[1765930425846,0.38596917,87765.0,87764.0,0.0002491]
[1765930426287,0.41658324,87765.0,87764.0,0.0002491]
[1765930426495,0.53191439,87765.0,87764.0,0.0002491]
[1765930426886,0.53391439,87765.0,87764.0,0.0002491]
[1765930427107,0.50230032,87765.0,87764.0,0.0002491]
[1765930427305,0.50530032,87765.0,87764.0,0.0002491]
[1765930427786,0.0113986,87730.0,87727.0,0.018]
[1765930427988,0.0113986,87730.0,87714.0,0.0002]
[1765930427989,0.04809,87723.0,87714.0,0.0002]
[1765930428195,0.05378608,87723.0,87714.0,0.0002]
[1765930428607,0.16767875,87723.0,87714.0,0.0002]
[1765930432801,0.17828225,87723.0,87714.0,0.0002]
[1765930433358,0.46898225,87723.0,87714.0,0.0002]
[1765930433547,0.46489904,87723.0,87714.0,0.0002]
[1765930433759,0.46489904,87723.0,87722.0,0.00150849]
[1765930434499,0.46589904,87723.0,87722.0,0.00150849]
[1765930434991,0.60449312,87723.0,87722.0,0.00150849]
[1765930435190,0.53467117,87715.0,87714.0,0.0002]
[1765930435411,0.59468239,87715.0,87714.0,0.0002]
[1765930435733,0.59925172,87715.0,87714.0,0.0002]
[1765930436162,0.60025172,87715.0,87714.0,0.0002]
[1765930437671,0.62048358,87715.0,87714.0,0.0002]
[1765930437877,0.60225172,87715.0,87714.0,0.0002]
[1765930439977,0.62663237,87715.0,87714.0,0.0002]
[1765930440784,0.62663237,87715.0,87714.0,0.00044932]
[1765930441766,0.01596,87699.0,87698.0,0.0002]
[1765930441970,0.54544097,87692.0,87661.0,0.01140758]
[1765930442188,0.63439451,87692.0,87670.0,0.41256454]
[1765930442800,0.63439451,87692.0,87664.0,0.01140719]
[1765930442990,0.63439451,87692.0,87661.0,0.01231]
[1765930443233,0.65878533,87692.0,87661.0,0.01231]
[1765930443649,0.65878533,87692.0,87691.0,0.0012]
[1765930444399,0.66078533,87692.0,87691.0,0.0012]
[1765930444593,0.66078533,87692.0,87691.0,0.0002]
[1765930445453,0.77711648,87692.0,87691.0,0.0002]
[1765930445655,0.67878533,87692.0,87691.0,0.0002]
[1765930445988,0.71306636,87692.0,87691.0,0.0002]
[1765930446951,0.27619601,87667.0,87650.0,0.01140901]
[1765930447154,0.40069218,87667.0,87650.0,0.41256454]
[1765930447544,0.40069218,87667.0,87650.0,0.42397355]
[1765930447943,0.40069218,87667.0,87651.0,0.01140888]
[1765930448139,0.40069218,87667.0,87666.0,85.93395742]
[1765930448564,0.40069218,87667.0,87666.0,85.93245422]
[1765930448764,0.40069218,87667.0,87666.0,85.93445422]
[1765930449145,0.40069218,87667.0,87666.0,85.93645422]
[1765930450384,0.69300505,87667.0,87666.0,85.93645422]
[1765930450587,0.7354189,87667.0,87666.0,85.93645422]
[1765930451024,0.7354189,87667.0,87666.0,85.93445422]
[1765930451428,0.73380603,87667.0,87666.0,85.93445422]
[1765930451655,0.70943218,87667.0,87666.0,85.93445422]
[1765930451896,0.73380506,87667.0,87666.0,85.93445422]
[1765930452098,0.73480506,87667.0,87666.0,85.93245422]
[1765930452306,0.63090011,87667.0,87666.0,85.93245422]
[1765930452510,0.63190011,87667.0,87666.0,85.93245422]
[1765930452948,0.60652723,87667.0,87666.0,85.93245422]
[1765930453331,0.60752723,87667.0,87666.0,85.93245422]
[1765930453733,0.53143951,87667.0,87666.0,85.93245422]
[1765930453959,0.54736951,87667.0,87666.0,85.93245422]
[1765930454293,0.79901333,87667.0,87666.0,85.93245422]
[1765930454886,0.79801333,87667.0,87666.0,85.93245422]
[1765930455291,0.79701333,87667.0,87666.0,85.93245422]
[1765930455493,0.69972218,87667.0,87666.0,85.93245422]
[1765930456080,0.56778951,87667.0,87666.0,85.93245422]
[1765930456288,0.69972218,87667.0,87666.0,85.93245422]
[1765930457356,0.72414676,87667.0,87666.0,85.93245422]
[1765930459757,0.59221409,87667.0,87666.0,85.93245422]
[1765930459956,0.26416409,87667.0,87666.0,85.93245422]
[1765930460158,0.0116035,87667.0,87666.0,85.95610422]
[1765930460732,0.0116035,87667.0,87666.0,85.93245422]
[1765930461867,0.0116035,87667.0,87666.0,85.95610422]
[1765930462107,0.0116035,87667.0,87666.0,85.93245422]
[1765930462552,0.0489535,87667.0,87666.0,85.93245422]
[1765930462851,0.0275335,87667.0,87666.0,85.93245422]
[1765930463691,0.0116035,87667.0,87666.0,85.93245422]
[1765930466393,0.0116035,87667.0,87666.0,85.95610422]
[1765930466614,0.0116035,87667.0,87666.0,85.93245422]
[1765930467515,0.03602808,87667.0,87666.0,85.93245422]
[1765930468227,0.05195808,87667.0,87666.0,85.93245422]
[1765930468437,0.07337808,87667.0,87666.0,85.93245422]
[1765930468646,0.18727075,87667.0,87666.0,85.92502877]
[1765930468847,0.18727075,87667.0,87666.0,85.91388997]
[1765930470394,0.2281599,87667.0,87666.0,85.91388997]
[1765930471256,0.18727075,87667.0,87666.0,85.91388997]
[1765930473201,0.22820136,87667.0,87666.0,85.91388997]
[1765930473390,0.18727075,87667.0,87666.0,85.91388997]
[1765930473662,0.03602808,87667.0,87666.0,85.91388997]
[1765930473831,0.03602808,87667.0,87666.0,85.93753997]
[1765930474286,0.06671852,87667.0,87666.0,85.93753997]
[1765930474971,0.06671852,87667.0,87666.0,85.93766275]
[1765930475815,0.06671852,87667.0,87666.0,85.91401275]
[1765930476474,0.03602808,87667.0,87666.0,85.91401275]
[1765930477122,0.03602808,87667.0,87666.0,85.93786275]
[1765930477318,0.06674128,87667.0,87666.0,85.93786275]
[1765930478389,0.03602808,87667.0,87666.0,85.93786275]
[1765930478774,0.07329808,87667.0,87666.0,85.91401275]
[1765930479397,0.16094032,87667.0,87666.0,85.91401275]
[1765930479804,0.10401028,87667.0,87666.0,85.91401275]
[1765930480163,0.07329808,87667.0,87666.0,85.91401275]
[1765930480370,0.18719075,87667.0,87666.0,85.91401275]
[1765930481916,0.07329808,87667.0,87666.0,85.91401275]
[1765930482115,0.18719075,87667.0,87666.0,85.91401275]
[1765930482521,0.36561095,87667.0,87666.0,85.91401275]
[1765930482908,0.43681507,87667.0,87666.0,85.91401275]
[1765930483098,0.43681507,87667.0,87666.0,85.91388997]
[1765930483272,0.37559867,87667.0,87666.0,85.91388997]
[1765930485078,0.41072091,87667.0,87666.0,85.91388997]
[1765930485727,0.45167231,87667.0,87666.0,85.91388997]
[1765930486258,0.41072091,87667.0,87666.0,85.91388997]
[1765930487289,0.41072091,87667.0,87666.0,85.91401275]
[1765930489353,0.39268091,87667.0,87666.0,85.91401275]
[1765930489559,0.41072091,87667.0,87666.0,85.91401275]
[1765930489763,0.41072091,87667.0,87666.0,85.91388997]
[1765930491137,0.44142215,87667.0,87666.0,85.91388997]
[1765930496752,0.41072091,87667.0,87666.0,85.91388997]
[1765930497317,0.44142215,87667.0,87666.0,85.91388997]
[1765930498565,0.41072091,87667.0,87666.0,85.91388997]
[1765930499793,0.39268091,87667.0,87666.0,85.91388997]
[1765930500032,0.51462586,87667.0,87666.0,85.91388997]
[1765930500244,0.45647075,87667.0,87666.0,85.91388997]
[1765930500556,0.001,87667.0,87666.0,85.91388997]
[1765930500760,0.01685,87667.0,87666.0,85.91388997]
[1765930501173,0.001,87667.0,87666.0,85.91388997]
[1765930501384,0.001,87667.0,87666.0,85.93773997]
[1765930502182,0.01140562,87676.0,87672.0,0.01140615]
[1765930502581,0.01140575,87675.0,87672.0,0.01140615]
[1765930503147,0.01140562,87676.0,87672.0,0.01140615]
[1765930503744,0.23952369,87674.0,87670.0,0.01244]
[1765930503958,0.23952369,87674.0,87666.0,86.15193611]
[1765930503959,0.25581642,87673.0,87672.0,0.001]
[1765930504299,0.01140641,87670.0,87667.0,0.0114068]
[1765930504712,0.23953735,87669.0,87666.0,85.91239317]
[1765930505669,0.23953735,87669.0,87667.0,0.001]
[1765930506432,0.23953741,87669.0,87667.0,0.001]
[1765930507005,0.01140654,87669.0,87667.0,0.002]
[1765930507517,0.01140641,87670.0,87667.0,0.002]
[1765930508148,0.01140641,87670.0,87669.0,0.0014032]
[1765930510250,0.01140641,87670.0,87669.0,0.0034032]
[1765930511474,0.22812305,87672.0,87669.0,0.0034032]
[1765930511751,0.22812305,87672.0,87669.0,0.002]
[1765930511752,0.22812772,87671.0,87669.0,0.002]
[1765930513062,0.22812772,87671.0,87669.0,0.001]
[1765930513271,0.22813601,87667.0,87666.0,85.91239317]
[1765930513470,0.239534,87671.0,87669.0,0.001]
[1765930513670,0.01140641,87670.0,87669.0,0.001]
[1765930514177,0.01140628,87671.0,87668.0,0.01234]
[1765930514382,0.01140615,87672.0,87669.0,0.001]
[1765930514554,0.2281282,87670.0,87669.0,0.001]
[1765930514765,0.01140628,87671.0,87669.0,0.001]
[1765930515154,0.23953366,87671.0,87669.0,0.002]
[1765930516195,0.23953366,87671.0,87669.0,0.001]
[1765930516398,0.23953366,87671.0,87668.0,0.001]
[1765930516626,0.01140628,87671.0,87669.0,0.001]
[1765930517008,0.01140628,87671.0,87669.0,0.002]
[1765930517207,0.2281282,87670.0,87669.0,0.001]
[1765930517406,0.22813288,87669.0,87667.0,0.01234]
[1765930517611,0.22813288,87669.0,87668.0,0.002]
[1765930517867,0.22813288,87669.0,87668.0,0.0024344]
[1765930518016,0.01140641,87670.0,87668.0,0.0024344]
[1765930518257,0.01140641,87670.0,87667.0,0.0237468]
[1765930518464,0.01140641,87670.0,87669.0,0.0014032]
[1765930518643,0.01140615,87672.0,87669.0,0.0014032]
[1765930518836,0.01140615,87672.0,87668.0,0.01140667]
[1765930519038,0.01140615,87672.0,87668.0,0.23953839]
[1765930519279,0.22812216,87673.0,87669.0,0.24053554]
[1765930519625,0.23951838,87676.0,87672.0,0.23952836]
[1765930519833,0.22811519,87675.0,87672.0,0.03484615]
[1765930520251,0.23952094,87675.0,87672.0,0.02344]
[1765930520898,0.23952094,87675.0,87667.0,0.01234]
[1765930520899,0.22813341,87668.0,87667.0,0.01234]
[1765930521099,0.01140562,87676.0,87667.0,0.01234]
[1765930521363,0.23952044,87676.0,87671.0,0.22812381]
[1765930521528,0.23952044,87676.0,87667.0,0.01234]
[1765930521529,0.01140445,87685.0,87683.0,0.02344]
[1765930521741,0.23949578,87685.0,87683.0,0.02344]
[1765930522159,0.22810973,87678.0,87676.0,0.01234]
[1765930522379,0.22811259,87676.0,87674.0,0.02344]
[1765930522745,0.22811259,87676.0,87675.0,0.03926]
[1765930523167,0.01140549,87677.0,87676.0,0.02344]
[1765930523382,0.01140549,87677.0,87676.0,0.03926]
[1765930525273,0.01140549,87677.0,87676.0,0.04026]
[1765930525502,0.01140536,87678.0,87677.0,0.03926]
[1765930526052,0.01140458,87684.0,87683.0,0.01582]
[1765930526343,0.22808844,87686.0,87685.0,0.01582]
[1765930526517,0.01140393,87689.0,87686.0,0.02344]
[1765930526720,0.23948499,87689.0,87686.0,0.02344]
[1765930526928,0.01140263,87699.0,87693.0,0.01140341]
[1765930527136,0.22805277,87699.0,87698.0,0.03926]
[1765930527309,0.23945195,87701.0,87698.0,0.03926]
[1765930527515,0.23945195,87701.0,87698.0,0.01582]
[1765930527919,0.0114025,87700.0,87697.0,0.01234]
[1765930528288,0.0114025,87700.0,87692.0,0.02344]
[1765930528289,0.23947049,87694.0,87692.0,0.02344]
[1765930528468,0.23947049,87694.0,87691.0,0.42509793]
[1765930528670,0.01140263,87699.0,87693.0,0.01140341]
[1765930528913,0.02211107,87711.0,87707.0,0.01140159]
[1765930529139,0.01804,87715.0,87711.0,0.01140107]
[1765930529349,0.01804,87715.0,87712.0,0.03484094]
[1765930529552,0.23941445,87714.0,87711.0,0.01234]
[1765930529981,0.22801897,87712.0,87708.0,0.01140146]
[1765930530185,0.01140146,87708.0,87705.0,0.01234]
[1765930530357,0.23943153,87708.0,87705.0,0.03578]
[1765930530590,0.22803457,87706.0,87705.0,0.02816]
[1765930530817,0.01140302,87696.0,87691.0,0.02374367]
[1765930531026,0.23945576,87699.0,87695.0,0.01140315]
[1765930531430,0.22804237,87703.0,87698.0,0.03484276]
[1765930531431,0.01140211,87703.0,87698.0,0.03484276]
[1765930531636,0.01140211,87703.0,87700.0,0.0114025]
[1765930531848,0.23944459,87703.0,87700.0,0.02344]
[1765930533027,0.22804757,87701.0,87700.0,0.02344]
[1765930533226,0.0114025,87700.0,87698.0,0.02344]
[1765930533791,0.0114025,87700.0,87699.0,0.03926]
[1765930534436,0.23944459,87703.0,87699.0,0.03926]
[1765930534437,0.01140224,87702.0,87699.0,0.03926]
[1765930534649,0.01140224,87702.0,87700.0,0.02318]
[1765930535246,0.01140224,87702.0,87700.0,0.02418]
[1765930535449,0.01140224,87702.0,87700.0,0.02318]
[1765930535907,0.23944975,87702.0,87700.0,0.02318]
[1765930536297,0.23944975,87702.0,87700.0,0.02418]
[1765930536463,0.23944975,87702.0,87700.0,0.02518]
[1765930536658,0.23944975,87702.0,87701.0,0.00040522]
[1765930538711,0.23944975,87702.0,87701.0,0.00140522]
[1765930538924,0.23944975,87702.0,87701.0,0.00240522]
[1765930539883,0.27599975,87702.0,87701.0,0.00240522]
[1765930540084,0.29308199,87702.0,87701.0,0.00240522]
[1765930541037,0.27599975,87702.0,87701.0,0.00240522]
[1765930541403,0.33292979,87702.0,87701.0,0.00240522]
[1765930543583,0.33292979,87702.0,87701.0,0.00140522]
[1765930544326,0.33292979,87702.0,87701.0,0.00040522]
[1765930544530,0.34355948,87702.0,87701.0,0.00040522]
[1765930544730,0.34555948,87702.0,87701.0,0.00040522]
[1765930544977,0.34455948,87702.0,87701.0,0.00040522]
[1765930545415,0.34555948,87702.0,87701.0,0.00040522]